bitfinex-derivatives/quotes_SOLF0:USTF0_20250905
["timestamp","ask_amount","ask_price","bid_price","bid_amount"]
[1757042204692,7.99,203.22,203.17,1.36481266]
[1757042204897,7.99,203.22,203.18,7.4]
[1757042205396,7.99,203.24,203.16,0.03410213]
[1757042207291,1.36481266,203.23,203.16,0.03410213]
[1757042207498,7.99,203.22,203.16,0.03410213]
[1757042208900,7.99,203.22,203.18,7.38]
[1757042209198,9.02481266,203.27,203.18,7.38]
[1757042209805,9.02481266,203.27,203.2,0.03100005]
[1757042210402,7.66,203.27,203.2,0.03100005]
[1757042212306,7.66,203.27,203.21,7.38]
[1757042212998,7.66,203.27,203.2,0.03100005]
[1757042213396,9.02481266,203.27,203.2,0.03100005]
[1757042214695,7.66,203.24,203.2,0.03100005]
[1757042215103,7.66,203.22,203.2,0.03100005]
[1757042215402,1.36481266,203.23,203.2,0.03100005]
[1757042215704,7.66,203.22,203.2,0.03100005]
[1757042215905,1.36481266,203.23,203.2,0.03100005]
[1757042216804,7.66,203.22,203.2,0.03100005]
[1757042217702,1.36481266,203.23,203.2,0.03100005]
[1757042218699,7.66,203.22,203.2,0.03100005]
[1757042218895,1.36481266,203.23,203.2,0.03100005]
[1757042219696,7.66,203.22,203.2,0.03100005]
[1757042220697,1.36481266,203.23,203.2,0.03100005]
[1757042221000,7.66,203.22,203.2,0.03100005]
[1757042221305,1.36481266,203.23,203.2,0.03100005]
[1757042221498,7.66,203.22,203.2,0.03100005]
[1757042221701,7.66,203.3,203.2,0.03100005]
[1757042221898,7.66,203.27,203.2,0.03100005]
[1757042222304,7.66,203.25,203.2,0.03100005]
[1757042222502,1.36481266,203.24,203.2,0.03100005]
[1757042222710,7.66,203.23,203.2,0.03100005]
[1757042223110,7.66,203.21,203.2,0.03100005]
[1757042230609,8.16,203.21,203.11,7.38]
[1757042230815,7.66,203.18,203.08,7.41]
[1757042231813,0.03270787,203.15,203.08,7.41]
[1757042232816,0.03270787,203.15,203.11,7.41]
[1757042233611,0.03270787,203.15,203.1,2.1325951]
[1757042233813,0.03270787,203.15,203.11,7.41]
[1757042234713,0.03270787,203.15,203.1,2.1325951]
[1757042235111,0.03270787,203.15,203.11,7.41]
[1757042235319,0.03270787,203.15,203.08,7.41]
[1757042237413,0.03270787,203.15,203.1,7.41]
[1757042242025,0.03270787,203.15,203.07,2.1325951]
[1757042242026,7.94270787,203.15,203.07,2.1325951]
[1757042242325,7.94270787,203.15,203.07,9.5325951]
[1757042242929,7.94270787,203.15,203.07,7.4]
[1757042244124,0.03270787,203.15,203.02,7.4]
[1757042244331,7.91,203.14,203.02,7.4]
[1757042244531,13.42471048,203.12,203.02,7.4]
[1757042245232,7.91,203.12,203.02,7.4]
[1757042245734,7.91,203.08,203.02,7.4]
[1757042246734,7.91,203.08,202.98,128.22]
[1757042247341,7.91,203.08,202.98,7.4]
[1757042248434,7.91,203.08,202.96,2.1325951]
[1757042248636,7.91,203.08,202.95,128.24]
[1757042249027,7.91,203.03,202.95,128.24]
[1757042253641,7.91,203.03,202.96,7.4]
[1757042258138,0.03257724,203.04,202.96,7.4]
[1757042258841,0.03257724,203.04,202.97,7.4]
[1757042259041,0.03257724,203.04,203.0,7.4]
[1757042261043,0.03257724,203.04,202.99,2.1325951]
[1757042261437,0.03257724,203.04,203.0,7.4]
[1757042261643,0.03257724,203.04,202.99,2.1325951]
[1757042262046,0.03257724,203.04,203.0,7.4]
[1757042262244,7.91,203.03,202.97,7.4]
[1757042262551,0.03257724,203.04,202.97,7.4]
[1757042262845,0.03257724,203.04,202.99,2.1325951]
[1757042263245,7.91,203.03,203.0,7.4]
[1757042263445,7.91,203.03,202.96,9.5325951]
[1757042264048,7.91,203.03,202.97,7.4]
[1757042269150,7.91,203.03,202.96,2.1325951]
[1757042269356,7.91,203.03,202.92,9.5725951]
[1757042273763,7.91,203.03,202.92,7.44]
[1757042275664,7.91,203.03,202.93,7.44]
[1757042279967,7.91,203.03,202.94,7.44]
[1757042282165,7.91,203.03,202.96,2.1325951]
[1757042282365,7.91,203.03,202.97,7.44]
[1757042282971,8.09,203.1,202.98,7.44]
[1757042283166,8.09,203.1,202.97,39.6]
[1757042283167,8.09,203.1,203.0,7.44]
[1757042284372,8.09,203.1,202.98,7.44]
[1757042284666,13.60471048,203.1,202.98,7.44]
[1757042285267,8.09,203.08,202.98,7.44]
[1757042285570,10.2225951,203.08,202.95,9.5725951]
[1757042285771,8.09,203.06,202.95,7.44]
[1757042285964,13.60471048,203.06,202.95,7.44]
[1757042286160,8.09,203.04,202.92,7.44]
[1757042287167,13.60471048,203.04,202.92,7.44]
[1757042287569,8.09,202.98,202.92,7.44]
[1757042289375,8.09,202.98,202.89,1.36790363]
[1757042291276,8.09,202.96,202.88,7.44]
[1757042291576,8.09,202.96,202.88,8.80790363]
[1757042293974,8.09,202.96,202.88,7.44]
[1757042294372,0.032146,202.94,202.88,7.44]
[1757042302880,0.032146,202.94,202.89,1.36790363]
[1757042303079,8.07,202.93,202.87,8.77790363]
[1757042306774,0.032146,202.94,202.9,7.41]
[1757042307180,0.032146,202.94,202.89,1.36790363]
[1757042307484,0.032146,202.94,202.9,7.41]
[1757042307689,0.032146,202.94,202.89,1.36790363]
[1757042308079,0.032146,202.94,202.92,7.41]
[1757042308483,0.032146,202.94,202.91,1.36790363]
[1757042308781,0.032146,202.94,202.92,7.41]
[1757042310582,0.032146,202.94,202.9,7.41]
[1757042310788,8.102146,202.94,202.9,7.41]
[1757042311083,8.102146,202.94,202.89,1.36790363]
[1757042311789,8.102146,202.94,202.9,7.41]
[1757042312089,8.102146,202.94,202.89,1.36790363]
[1757042312684,8.102146,202.94,202.9,7.41]
[1757042313182,8.07,202.93,202.9,7.41]
[1757042315190,0.032146,202.94,202.9,7.41]
[1757042315583,8.07,202.93,202.9,7.41]
[1757042317190,0.032146,202.94,202.9,7.41]
[1757042317391,8.07,202.93,202.9,7.41]
[1757042319888,8.07,202.93,202.87,8.77790363]
[1757042320589,8.07,202.93,202.87,7.41]
[1757042320893,8.07,202.93,202.86,1.36790363]
[1757042322197,8.102146,202.94,202.88,8.77790363]
[1757042322794,0.032146,202.94,202.9,1.36790363]
[1757042323105,0.032146,202.94,202.93,7.41]
[1757042330405,13.29471048,203.04,202.93,7.91]
[1757042330609,5.51471048,203.06,203.02,1.36790363]
[1757042330800,7.78,203.07,203.04,8.79790363]
[1757042331406,7.78,203.1,203.04,1.36790363]
[1757042332105,7.78,203.1,203.06,1.36790363]
[1757042332312,7.78,203.1,203.06,8.79790363]
[1757042332706,7.78,203.1,203.07,7.43]
[1757042333108,7.78,203.14,203.07,7.43]
[1757042333708,7.78,203.14,203.08,0.03221205]
[1757042336418,7.78,203.14,203.08,1.40011568]
[1757042336615,7.78,203.14,203.08,0.03221205]
[1757042337711,7.78,203.14,203.1,7.43]
[1757042338920,1.36790363,203.19,203.1,7.43]
[1757042339115,7.78,203.18,203.1,7.43]
[1757042339521,7.78,203.18,203.12,0.03160878]
[1757042344029,7.78,203.21,203.15,1.36790363]
[1757042344728,7.78,203.23,203.16,0.03500053]
[1757042346130,7.78,203.23,203.17,1.36790363]
[1757042347524,7.78,203.23,203.16,0.03500053]
[1757042348024,7.78,203.23,203.16,7.46500053]
[1757042352732,7.78,203.23,203.17,2.13169765]
[1757042353732,7.78,203.23,203.18,7.43]
[1757042353932,7.78,203.23,203.17,2.13169765]
[1757042354637,7.78,203.23,203.18,7.43]
[1757042355136,7.78,203.23,203.17,2.13169765]
[1757042355540,7.78,203.23,203.18,7.43]
[1757042356136,7.78,203.23,203.17,2.13169765]
[1757042356738,7.78,203.23,203.18,7.43]
[1757042356939,7.78,203.23,203.17,2.13169765]
[1757042357443,7.78,203.31,203.18,7.43]
[1757042357840,7.78,203.31,203.21,7.43]
[1757042358039,7.78,203.31,203.22,0.03738451]
[1757042364446,9.91169765,203.31,203.22,0.03738451]
[1757042369846,47.16,203.3,203.22,0.03738451]
[1757042370150,7.86,203.29,203.22,0.03738451]
[1757042373151,13.37471048,203.29,203.22,0.03738451]
[1757042375151,5.51471048,203.28,203.22,0.03738451]
[1757042375453,7.86,203.28,203.22,0.03738451]
[1757042375653,7.86,203.28,203.22,7.44738451]
[1757042385259,13.37471048,203.31,203.22,7.44738451]
[1757042385462,7.86,203.31,203.22,7.44738451]
[1757042386264,13.37471048,203.31,203.22,7.44738451]
[1757042387957,7.86,203.31,203.22,7.44738451]
[1757042388156,13.37471048,203.31,203.22,7.44738451]
[1757042388357,7.86,203.31,203.22,7.44738451]
[1757042391170,13.37471048,203.31,203.22,7.44738451]
[1757042391765,7.86,203.31,203.22,7.44738451]
[1757042392564,7.86,203.31,203.23,2.13169765]
[1757042392769,7.86,203.31,203.24,7.44]
[1757042395869,12.95471048,203.33,203.24,7.44]
[1757042396471,12.95471048,203.33,203.26,0.03683272]
[1757042396667,12.95471048,203.31,203.26,0.03683272]
[1757042397166,5.51471048,203.3,203.26,0.03683272]
[1757042397372,7.44,203.29,203.26,0.03683272]
[1757042397871,12.95471048,203.29,203.26,0.03683272]
[1757042399071,5.51471048,203.29,203.26,0.03683272]
[1757042399268,7.44,203.28,203.26,0.03683272]
[1757042399468,5.51471048,203.29,203.26,0.03683272]
[1757042399668,7.44,203.28,203.26,0.03683272]
[1757042400367,12.95471048,203.28,203.26,0.03683272]
[1757042400565,12.95471048,203.28,203.17,7.44]
[1757042400770,7.44,203.26,203.17,7.44]
[1757042407478,8.80434789,203.26,203.17,8.80434789]
[1757042408881,5.51471048,203.27,203.15,1.36434789]
[1757042408882,1.36434789,203.24,203.15,1.36434789]
[1757042409079,7.44,203.23,203.15,1.36434789]
[1757042411479,7.44,203.23,203.13,8.83434789]
[1757042411880,1.36434789,203.22,203.13,8.83434789]
[1757042412180,7.44,203.21,203.13,8.83434789]
[1757042413977,0.03244024,203.19,203.13,8.83434789]
[1757042414685,0.03244024,203.19,203.13,7.47]
[1757042414878,0.03244024,203.19,203.13,8.83434789]
[1757042415578,7.44,203.18,203.09,7.47]
[1757042415779,7.44,203.18,203.12,1.36434789]
[1757042415981,7.44,203.18,203.12,8.83434789]
[1757042416379,0.03331064,203.17,203.12,1.36434789]
[1757042416579,0.03331064,203.17,203.15,7.47]
[1757042417083,0.03331064,203.17,203.14,1.36434789]
[1757042417278,0.03331064,203.17,203.16,8.83434789]
[1757042419990,0.03331064,203.17,203.14,1.36434789]
[1757042420191,0.03331064,203.17,203.15,7.46]
[1757042420484,0.03331064,203.17,203.14,1.36434789]
[1757042421891,0.03331064,203.17,203.15,7.46]
[1757042422492,0.03331064,203.17,203.14,1.36434789]
[1757042423282,0.03331064,203.17,203.15,7.46]
[1757042424287,0.03331064,203.17,203.16,8.82434789]
[1757042426392,0.03331064,203.17,203.14,1.36434789]
[1757042426596,7.56331064,203.17,203.13,7.46]
[1757042427897,7.56331064,203.17,203.12,1.36434789]
[1757042428099,7.56331064,203.17,203.13,7.46]
[1757042429698,7.56331064,203.17,203.12,1.36434789]
[1757042429900,7.56331064,203.17,203.13,7.46]
[1757042430402,7.56331064,203.17,203.12,1.36434789]
[1757042430900,7.56331064,203.17,203.13,7.46]
[1757042431490,7.53,203.16,203.13,7.46]
[1757042431695,0.03331064,203.17,203.12,1.36434789]
[1757042431895,0.03331064,203.17,203.07,51.36]
[1757042432099,7.53,203.16,203.1,1.36434789]
[1757042433596,7.53,203.16,203.11,7.46]
[1757042433900,7.53,203.16,203.1,1.36434789]
[1757042434597,7.56331064,203.17,203.1,8.82434789]
[1757042435494,7.56331064,203.17,203.12,1.36434789]
[1757042435699,7.53,203.16,203.13,7.46]
[1757042435899,0.03331064,203.17,203.15,7.46]
[1757042436097,0.03331064,203.17,203.14,1.36434789]
[1757042436396,0.03410817,203.18,203.14,8.82434789]
[1757042436601,0.03410817,203.18,203.14,1.36434789]
[1757042437092,0.03410817,203.18,203.15,7.46]
[1757042437295,0.03410817,203.18,203.17,7.46]
[1757042437597,7.53,203.25,203.17,7.46]
[1757042437802,0.03359344,203.2,203.18,1.36434789]
[1757042438000,0.03359344,203.2,203.19,7.46]
[1757042439606,0.03359344,203.2,203.19,8.82434789]
[1757042440404,0.03359344,203.2,203.17,8.85565237]
[1757042440405,7.56359344,203.2,203.17,8.85565237]
[1757042440800,0.03359344,203.2,203.17,0.03130448]
[1757042441202,7.53,203.19,203.17,0.03130448]
[1757042443499,0.03359344,203.2,203.17,0.03130448]
[1757042443701,1.36434789,203.18,203.17,0.03130448]
[1757042443900,8.89434789,203.18,203.17,0.03130448]
[1757042444106,9.39434789,203.18,203.17,0.03130448]
[1757042445601,8.89434789,203.18,203.17,0.03130448]
[1757042448508,7.53,203.18,203.17,0.03130448]
[1757042449813,7.75359344,203.2,203.17,0.03130448]
[1757042450010,7.72,203.19,203.17,0.03130448]
[1757042450209,0.03359344,203.2,203.17,0.03130448]
[1757042450411,7.72,203.19,203.17,0.03130448]
[1757042452914,0.03359344,203.2,203.17,0.03130448]
[1757042453109,7.72,203.19,203.17,0.03130448]
[1757042453516,0.03359344,203.2,203.17,0.03130448]
[1757042453917,7.72,203.19,203.17,0.03130448]
[1757042454516,0.03359344,203.2,203.17,0.03130448]
[1757042454717,7.72,203.19,203.17,0.03130448]
[1757042454916,0.03359344,203.2,203.17,0.03130448]
[1757042455113,7.72,203.19,203.17,0.03130448]
[1757042455317,0.03359344,203.2,203.17,0.03130448]
[1757042455517,7.72,203.19,203.17,0.03130448]
[1757042456419,0.03359344,203.2,203.17,0.03130448]
[1757042456616,7.72,203.19,203.17,0.03130448]
[1757042458215,0.03359344,203.2,203.17,0.03130448]
[1757042458420,7.72,203.19,203.17,0.03130448]
[1757042458820,0.03359344,203.2,203.17,0.03130448]
[1757042459218,7.72,203.19,203.17,0.03130448]
[1757042459419,0.03359344,203.2,203.17,0.03130448]
[1757042459619,7.72,203.19,203.17,0.03130448]
[1757042459815,0.03359344,203.2,203.17,0.03130448]
[1757042460024,7.72,203.19,203.17,0.03130448]
[1757042460215,1.39794133,203.2,203.17,0.03130448]
[1757042460414,7.72,203.19,203.17,0.03130448]
[1757042461519,1.39794133,203.2,203.17,0.03130448]
[1757042461920,7.72,203.19,203.17,0.03130448]
[1757042462122,1.39794133,203.2,203.17,0.03130448]
[1757042462522,7.72,203.19,203.17,0.03130448]
[1757042463625,1.39794133,203.2,203.17,0.03130448]
[1757042464022,7.72,203.19,203.17,0.03130448]
[1757042464425,1.39794133,203.2,203.17,0.03130448]
[1757042464627,7.72,203.19,203.17,0.03130448]
[1757042465327,1.39794133,203.2,203.17,0.03130448]
[1757042465626,7.72,203.19,203.17,0.03130448]
[1757042466227,1.39794133,203.2,203.17,0.03130448]
[1757042466418,7.72,203.19,203.17,0.03130448]
[1757042466828,1.39794133,203.2,203.17,0.03130448]
[1757042467127,7.72,203.19,203.17,0.03130448]
[1757042467522,0.03359344,203.2,203.17,0.03130448]
[1757042467920,7.72,203.19,203.17,0.03130448]
[1757042469428,13.23471048,203.19,203.06,7.49]
[1757042469627,2.13301531,203.18,203.06,7.49]
[1757042469827,7.72,203.17,203.06,7.49]
[1757042470324,3.68940083,203.16,203.06,7.49]
[1757042470527,3.68940083,203.15,203.09,7.49]
[1757042470729,3.72593254,203.14,203.09,7.49]
[1757042470929,0.03653171,203.14,203.09,7.49]
[1757042472932,0.03653171,203.14,203.1,2.13301531]
[1757042473432,0.03653171,203.14,203.11,7.49]
[1757042473930,0.03653171,203.14,203.1,2.13301531]
[1757042474122,0.03653171,203.14,203.11,7.49]
[1757042474525,7.75653171,203.14,203.06,7.49]
[1757042474924,7.72,203.14,203.06,7.49]
[1757042475235,0.03287467,203.12,203.06,7.49]
[1757042480730,7.88,203.11,203.02,7.49]
[1757042481124,3.86749414,203.1,203.02,7.49]
[1757042481327,3.86749414,203.09,203.02,7.49]
[1757042481631,3.86749414,203.08,203.02,7.49]
[1757042481831,3.86749414,203.07,203.01,7.49]
[1757042482034,0.03673992,203.08,203.01,7.49]
[1757042483034,7.88,203.07,202.97,7.49]
[1757042483835,0.03382808,203.04,202.97,7.49]
[1757042489043,7.88,203.03,202.97,7.49]
[1757042489242,7.88,203.03,202.93,101.3]
[1757042489243,7.88,203.03,202.94,7.49]
[1757042495936,7.88,203.03,202.95,7.49]
[1757042496838,0.03382808,203.04,202.95,7.49]
[1757042501548,7.91382808,203.04,202.95,7.49]
[1757042518355,7.91382808,203.04,202.91,2.13301531]
[1757042518555,7.91382808,203.04,202.92,7.51]
[1757042518760,7.88,203.04,202.92,7.51]
[1757042519060,7.79,202.99,202.92,7.51]
[1757042521053,0.03444984,203.0,202.92,7.51]
[1757042521858,7.79,202.99,202.92,7.51]
[1757042523051,0.03444984,203.0,202.85,28.76]
[1757042523254,0.03444984,203.0,202.8,5.51779332]
[1757042523255,7.79,202.9,202.8,5.51779332]
[1757042523556,7.79,202.87,202.76,7.51]
[1757042523753,7.82756321,202.87,202.76,7.51]
[1757042528455,9.96057852,202.87,202.76,7.51]
[1757042529458,1.369932,202.84,202.76,7.51]
[1757042529652,9.159932,202.84,202.76,7.51]
[1757042530057,0.03472492,202.82,202.77,1.369932]
[1757042531059,0.03472492,202.82,202.78,7.51]
[1757042531664,0.03472492,202.82,202.77,1.369932]
[1757042531959,0.03472492,202.82,202.78,7.51]
[1757042532266,0.03472492,202.82,202.77,1.369932]
[1757042532865,0.03472492,202.82,202.78,7.51]
[1757042533165,0.03472492,202.82,202.77,1.369932]
[1757042533366,0.03472492,202.82,202.78,7.51]
[1757042533967,0.03472492,202.82,202.77,1.369932]
[1757042534269,0.03472492,202.82,202.78,7.51]
[1757042534658,0.03472492,202.82,202.77,1.369932]
[1757042534865,0.03472492,202.82,202.74,117.08]
[1757042535065,0.03472492,202.82,202.8,7.51]
[1757042535268,0.03472492,202.82,202.79,1.369932]
[1757042535668,0.03472492,202.82,202.8,7.51]
[1757042536958,0.03472492,202.82,202.79,1.369932]
[1757042537166,0.03472492,202.82,202.81,8.879932]
[1757042538464,7.8,202.91,202.81,9.379932]
[1757042538668,7.8,202.91,202.85,8.869932]
[1757042539260,7.8,202.91,202.85,7.5]
[1757042540274,3.38727596,202.9,202.85,7.5]
[1757042540467,7.8,202.91,202.85,7.49]
[1757042540667,3.38726819,202.9,202.84,8.859932]
[1757042540870,3.38726819,202.89,202.85,7.49]
[1757042541071,7.8,202.91,202.84,8.859932]
[1757042541266,3.38727423,202.9,202.84,8.859932]
[1757042541467,7.8,202.91,202.84,8.859932]
[1757042541670,7.8,202.91,202.74,4.4385]
[1757042541671,7.8,202.89,202.81,1.369932]
[1757042542074,7.8,202.89,202.83,1.369932]
[1757042543870,7.8,202.89,202.82,7.49]
[1757042544067,3.38907624,202.88,202.81,1.369932]
[1757042544372,7.8,202.89,202.8,1.369932]
[1757042544673,7.8,202.87,202.8,1.369932]
[1757042546068,7.8,202.87,202.79,7.49]
[1757042546268,4.75982864,202.86,202.72,7.49]
[1757042546466,7.8,202.83,202.76,1.369932]
[1757042547668,7.8,202.83,202.77,1.369932]
[1757042548676,7.8,202.83,202.76,7.49]
[1757042548972,7.8,202.83,202.77,1.369932]
[1757042550072,5.46145014,202.91,202.78,7.49]
[1757042550073,9.169932,202.87,202.78,7.49]
[1757042550266,3.38826505,202.86,202.79,1.369932]
[1757042550467,7.8,202.87,202.79,1.369932]
[1757042550673,3.38845212,202.86,202.79,1.369932]
[1757042550870,3.38845212,202.85,202.79,1.369932]
[1757042551174,7.8,202.87,202.79,1.369932]
[1757042551377,3.38795114,202.86,202.79,1.369932]
[1757042551576,3.38795114,202.85,202.79,1.369932]
[1757042551774,7.8,202.87,202.79,1.369932]
[1757042551980,3.38854231,202.86,202.79,1.369932]
[1757042552181,3.38854231,202.85,202.78,7.49]
[1757042552371,7.8,202.87,202.79,1.369932]
[1757042552573,3.38925577,202.86,202.79,1.369932]
[1757042552768,3.38925577,202.85,202.79,1.369932]
[1757042552977,7.8,202.86,202.78,7.49]
[1757042553176,7.8,202.84,202.77,1.369932]
[1757042553478,7.8,202.82,202.76,1.369932]
[1757042553676,7.8,202.82,202.75,7.49]
[1757042555274,3.39146545,202.81,202.75,7.49]
[1757042555480,7.8,202.82,202.75,7.49]
[1757042556280,3.39324338,202.81,202.75,7.49]
[1757042556485,7.8,202.82,202.75,7.49]
[1757042556684,3.39354767,202.81,202.75,7.49]
[1757042556985,7.8,202.82,202.75,7.49]
[1757042557483,11.19430718,202.81,202.77,7.49]
[1757042557682,7.8,202.84,202.77,7.49]
[1757042557881,3.39456147,202.83,202.77,7.49]
[1757042558182,1.369932,202.9,202.8,1.369932]
[1757042558382,14.95458139,202.89,202.8,1.369932]
[1757042558583,7.15458139,202.88,202.8,1.369932]
[1757042558781,7.15458139,202.87,202.8,1.369932]
[1757042558977,7.15458139,202.86,202.8,1.369932]
[1757042559183,7.8,202.89,202.8,1.369932]
[1757042559478,7.1587113,202.88,202.8,1.369932]
[1757042559684,7.1587113,202.87,202.8,1.369932]
[1757042559884,7.1587113,202.86,202.8,1.369932]
[1757042560182,3.39687454,202.85,202.81,7.49]
[1757042560384,7.8,202.89,202.81,7.49]
[1757042560587,7.16301573,202.88,202.81,7.49]
[1757042560781,7.16301573,202.87,202.81,7.49]
[1757042560983,7.16301573,202.86,202.82,8.859932]
[1757042561182,5.46145014,202.93,202.83,7.49]
[1757042561485,7.8,202.9,202.83,7.49]
[1757042561679,3.39972257,202.89,202.83,7.49]
[1757042563388,7.8,202.87,202.83,7.49]
[1757042563688,3.39972257,202.86,202.83,7.49]
[1757042564687,3.39972257,202.86,202.82,1.369932]
[1757042564888,3.39972257,202.85,202.84,8.859932]
[1757042565182,6.83138214,202.92,202.85,7.49]
[1757042565183,11.19972257,202.89,202.85,7.49]
[1757042565383,3.40817682,202.88,202.85,7.49]
[1757042565588,3.40817682,202.87,202.85,7.49]
[1757042565888,3.40817682,202.86,202.85,7.49]
[1757042566276,3.40817682,202.88,202.84,1.369932]
[1757042566481,3.40817682,202.87,202.84,1.369932]
[1757042566682,3.40817682,202.86,202.84,1.369932]
[1757042566887,3.40817682,202.85,202.84,1.369932]
[1757042567486,7.8,202.87,202.84,1.369932]
[1757042567686,3.40817682,202.86,202.84,1.369932]
[1757042567890,3.40817682,202.85,202.84,1.369932]
[1757042568084,3.40817682,202.86,202.84,1.369932]
[1757042568391,3.40817682,202.85,202.84,1.369932]
[1757042570295,7.8,202.87,202.84,1.369932]
[1757042570691,7.8,202.87,202.83,1.369932]
[1757042570890,7.8,202.87,202.83,8.869932]
[1757042572394,1.369932,202.92,202.83,8.869932]
[1757042572395,8.23,202.91,202.83,8.869932]
[1757042572790,8.23,202.91,202.83,1.369932]
[1757042574297,8.23,202.91,202.85,7.5]
[1757042575096,8.23,202.95,202.87,7.5]
[1757042575300,8.23,202.95,202.88,1.369932]
[1757042577401,8.23,202.95,202.87,7.5]
[1757042577603,8.23,202.95,202.87,8.869932]
[1757042577796,8.23,202.95,202.87,7.5]
[1757042580600,8.23,202.95,202.88,1.369932]
[1757042580806,0.0338921,202.93,202.91,7.5]
[1757042581600,0.0338921,202.93,202.9,1.369932]
[1757042581801,0.0338921,202.93,202.91,7.5]
[1757042582002,0.0338921,202.93,202.9,1.369932]
[1757042582198,0.0338921,202.93,202.91,7.5]
[1757042582505,0.0338921,202.93,202.9,1.369932]
[1757042582701,8.2638921,202.93,202.89,0.03140927]
[1757042582907,8.23,202.92,202.89,0.03140927]
[1757042583307,0.0338921,202.93,202.89,0.03140927]
[1757042583511,8.23,202.92,202.89,0.03140927]
[1757042584306,0.0338921,202.93,202.89,0.03140927]
[1757042584498,8.23,202.92,202.89,0.03140927]
[1757042584704,0.0338921,202.93,202.89,0.03140927]
[1757042584905,8.23,202.92,202.89,0.03140927]
[1757042585100,0.0338921,202.93,202.89,0.03140927]
[1757042585807,9.599932,202.92,202.89,0.03140927]
[1757042586109,9.599932,202.9,202.89,0.03140927]
[1757042589312,10.099932,202.9,202.89,0.03140927]
[1757042589511,8.73,202.9,202.81,7.5]
[1757042589712,8.23,202.9,202.81,7.5]
[1757042590808,8.23,202.87,202.81,7.5]
[1757042591115,8.23,202.87,202.77,7.5]
[1757042591509,8.23,202.85,202.72,125.06]
[1757042591813,8.23,202.85,202.73,7.5]
[1757042592210,0.03614233,202.81,202.73,7.5]
[1757042596217,0.03614233,202.81,202.75,7.5]
[1757042596611,0.03614233,202.81,202.78,7.5]
[1757042596812,0.03614233,202.81,202.77,2.13952835]
[1757042597316,0.03614233,202.81,202.78,7.5]
[1757042597815,0.03614233,202.81,202.78,7.52]
[1757042598016,0.03614233,202.81,202.77,2.13952835]
[1757042598614,0.03614233,202.81,202.78,7.52]
[1757042598916,0.03614233,202.81,202.77,2.13952835]
[1757042599118,0.03614233,202.81,202.78,7.52]
[1757042599917,0.03614233,202.81,202.77,2.13952835]
[1757042600117,0.03614233,202.81,202.78,7.52]
[1757042600417,0.03614233,202.81,202.77,2.13952835]
[1757042600810,0.03614233,202.81,202.78,7.52]
[1757042601016,0.03614233,202.81,202.77,2.13952835]
[1757042601216,0.03614233,202.81,202.73,7.52]
[1757042601416,0.03614233,202.81,202.76,126.16]
[1757042602116,0.03614233,202.81,202.77,7.52]
[1757042602312,0.03614233,202.81,202.75,2.13952835]
[1757042602519,0.03614233,202.81,202.77,7.52]
[1757042602815,0.03614233,202.81,202.76,77.4]
[1757042603121,0.03614233,202.81,202.77,7.52]
[1757042603517,0.03614233,202.81,202.76,77.4]
[1757042603819,0.03614233,202.81,202.77,7.52]
[1757042604019,0.03614233,202.81,202.76,77.4]
[1757042605119,0.03614233,202.81,202.77,7.52]
[1757042606022,0.03614233,202.81,202.76,77.4]
[1757042606520,0.03614233,202.81,202.77,7.52]
[1757042606723,0.03614233,202.81,202.76,77.4]
[1757042607017,0.03614233,202.81,202.77,7.52]
[1757042608117,0.03614233,202.81,202.79,7.52]
[1757042609124,8.2,202.93,202.79,7.52]
[1757042609321,8.2,202.93,202.82,7.52]